bitfinex/quotes_ETHUSD_20250328
["timestamp","ask_amount","ask_price","bid_price","bid_amount"]
[1743180420191,7.14136284,1877.9,1877.8,5.32538]
[1743180420991,7.14136284,1877.9,1877.8,6.25258]
[1743180421400,6.05999,1877.9,1877.8,6.25258]
[1743180421695,28.207,1878.1,1877.9,5.32488]
[1743180421859,28.207,1878.1,1878.0,5.32481]
[1743180422060,28.207,1878.1,1878.0,7.314779]
[1743180423059,6.05999,1878.2,1878.1,5.32453]
[1743180424215,1.06578953,1878.4,1878.3,6.27746]
[1743180424395,6.05999,1878.6,1878.3,0.9535]
[1743180424804,6.05999,1878.6,1878.5,5.32339]
[1743180425605,28.199,1878.9,1878.6,5.32298]
[1743180425883,5.32307,1878.7,1878.3,5.32393]
[1743180426120,5.32311,1878.6,1878.2,6.28512]
[1743180426290,5.32437,1878.2,1878.0,0.9609]
[1743180426486,5.32437,1878.2,1877.7,5.32547]
[1743180426487,5.3247,1878.1,1877.7,5.32547]
[1743180426708,5.3247,1878.1,1877.7,5.32553]
[1743180427389,16.64324,1878.2,1877.8,5.32514]
[1743180427719,5.3252,1877.9,1877.5,0.9723]
[1743180427919,33.5182,1877.9,1877.5,6.29848]
[1743180428289,5.32547,1877.8,1877.4,5.32635]
[1743180428590,11.38546,1877.8,1877.4,5.32635]
[1743180429002,5.32567,1877.7,1877.4,5.32635]
[1743180429221,5.32567,1877.7,1877.4,5.32651]
[1743180429905,1.06949243,1877.6,1877.4,5.32651]
[1743180430111,1.06949243,1877.6,1877.5,5.32623]
[1743180430682,1.06949243,1877.6,1877.3,6.29599]
[1743180431286,1.06949243,1877.6,1877.4,5.32645]
[1743180431604,1.06949243,1877.6,1877.5,5.32623]
[1743180432009,6.05999,1877.8,1877.6,5.32569]
[1743180432221,6.05999,1877.8,1877.7,5.32566]
[1743180432393,6.05999,1877.8,1877.7,6.27126]
[1743180432791,6.05999,1877.8,1877.4,5.32647]
[1743180432995,5.32577,1877.7,1877.3,10.65344]
[1743180433213,5.32577,1877.7,1877.3,5.32669]
[1743180433393,6.05999,1877.8,1877.5,5.32599]
[1743180433594,6.05999,1877.8,1877.6,5.32594]
[1743180434020,6.05999,1877.8,1877.3,1.160746]
[1743180434226,7.10758411,1877.8,1877.6,5.32583]
[1743180434625,7.10758411,1877.8,1877.5,10.65233]
[1743180434795,12.43304411,1877.8,1877.4,5.32634]
[1743180435528,12.43304411,1877.8,1877.4,10.65265]
[1743180435729,7.10758411,1877.8,1877.6,5.32586]
[1743180435900,7.10758411,1877.8,1877.5,5.32622]
[1743180436102,12.43299411,1877.8,1877.5,5.32622]
[1743180436301,12.43299411,1877.8,1877.4,5.32648]
[1743180436302,17.75856411,1877.8,1877.4,5.32648]
[1743180436622,17.75856411,1877.8,1877.2,6.28074]
[1743180436623,5.32608,1877.6,1877.2,6.28074]
[1743180436828,5.32636,1877.5,1877.2,6.28074]
[1743180437029,5.3266,1877.4,1877.0,6.21446]
[1743180437196,5.32693,1877.3,1877.0,0.887]
[1743180437394,5.32693,1877.3,1876.9,5.32791]
[1743180437796,5.32723,1877.2,1876.8,6.3283555]
[1743180438030,5.32723,1877.2,1876.8,11.6564655]
[1743180438402,5.32693,1877.3,1876.9,5.32792]
[1743180438816,5.32719,1877.2,1876.8,11.6564455]
[1743180439013,5.32738,1877.1,1876.8,6.3282755]
[1743180439636,10.65494,1877.1,1876.8,1.0001755]
[1743180439819,5.32738,1877.1,1876.8,1.0001755]
[1743180440140,5.32783,1877.0,1876.8,0.1131755]
[1743180440305,5.32782,1877.0,1876.8,0.1131755]
[1743180440635,5.32741,1877.1,1876.8,0.1131755]
[1743180440847,11.38709,1877.2,1876.8,5.4412855]
[1743180441007,11.38709,1877.2,1876.8,5.4411255]
[1743180441330,5.32741,1877.1,1876.8,5.4411255]
[1743180442555,5.32741,1877.1,1876.8,0.1131755]
[1743180443037,10.65496,1877.1,1876.8,0.1131755]
[1743180443235,11.3874,1877.1,1876.8,5.4413555]
[1743180443841,11.3874,1877.1,1876.8,0.1131755]
[1743180444027,10.65561,1877.0,1876.8,0.1131755]
[1743180444335,6.40272306,1876.9,1876.8,0.1131755]
[1743180444505,34.60072306,1876.9,1876.8,0.1131755]
[1743180444706,43.66071306,1876.9,1876.8,0.1131755]
[1743180445542,44.05863069,1876.9,1876.8,0.1131755]
[1743180447209,44.60863069,1876.9,1876.8,0.1131755]
[1743180448259,5.32917,1876.5,1876.1,5.38004]
[1743180448550,11.2761745,1876.4,1876.1,6.547069]
[1743180448753,11.2761745,1876.4,1876.1,5.38004]
[1743180449112,5.32971,1876.3,1876.1,0.05]
[1743180449309,5.32992,1876.2,1876.1,0.05]
[1743180450947,14.2767345,1876.2,1876.1,0.05]
[1743180451174,14.8267345,1876.2,1876.1,0.05]
[1743180452116,15.22769793,1876.2,1876.1,0.05]
[1743180452317,5.33191,1875.5,1875.3,0.8117]
[1743180452519,5.9468145,1875.5,1875.3,0.8117]
[1743180452718,5.9468145,1875.5,1875.3,6.14404]
[1743180452915,5.9468145,1875.5,1875.4,5.33219]
[1743180453643,5.9468145,1875.5,1875.3,6.14404]
[1743180454557,5.9468145,1875.5,1875.4,5.33219]
[1743180456174,5.9468145,1875.5,1875.4,6.479806]
[1743180456358,5.9468145,1875.5,1875.4,5.33219]
[1743180457965,5.9468145,1875.5,1875.4,6.12129]
[1743180460265,28.21,1875.7,1875.6,6.12072]
[1743180460780,5.263,1876.2,1876.0,5.33042]
[1743180461147,5.263,1876.2,1876.1,5.3302]
[1743180461530,5.263,1876.2,1876.0,5.33042]
[1743180461959,5.263,1876.2,1875.9,5.33077]
[1743180462139,5.3303,1876.1,1875.7,6.934405]
[1743180462334,5.3303,1876.1,1875.7,5.33119]
[1743180462546,5.33063,1876.0,1875.7,5.33131]
[1743180463165,5.33025,1876.1,1875.6,0.7891]
[1743180463333,5.3305,1876.0,1875.6,6.12058]
[1743180463538,5.3305,1876.0,1875.6,11.45203]
[1743180463733,4.5e-06,1876.1,1875.6,0.7891]
[1743180463954,5.3309,1875.9,1875.5,10.66354]
[1743180464134,10.66191,1875.9,1875.5,6.473734]
[1743180464335,10.66185,1875.9,1875.5,6.473734]
[1743180464557,5.3309,1875.9,1875.5,11.805514]
[1743180464971,5.3309,1875.9,1875.6,5.33157]
[1743180465336,5.33053,1876.0,1875.7,5.33125]
[1743180465749,5.3302245,1876.1,1875.8,5.33096]
[1743180466070,1.059216,1875.9,1875.8,5.33096]
[1743180472469,1.059216,1875.9,1875.7,12.543472]
[1743180472643,1.059216,1875.9,1875.6,5.33159]
[1743180472969,1.059216,1875.9,1875.6,5.33152]
[1743180473173,6.390036,1875.9,1875.6,10.663]
[1743180473469,1.059216,1875.9,1875.6,10.663]
[1743180474344,1.059216,1875.9,1875.6,10.66299]
[1743180474773,1.059216,1875.9,1875.7,5.33132]
[1743180475074,1.059216,1875.9,1875.8,5.33105]
[1743180476578,1.059216,1875.9,1875.7,10.66256]
[1743180477346,1.059216,1875.9,1875.8,5.33105]
[1743180477565,1.059216,1875.9,1875.7,5.33124]
[1743180477746,1.059216,1875.9,1875.7,5.33122]
[1743180478779,1.059216,1875.9,1875.7,10.66246]
[1743180479075,1.059216,1875.9,1875.7,5.33122]
[1743180479976,1.059216,1875.9,1875.6,5.33156]
[1743180480152,11.720986,1875.9,1875.5,5.33179]
[1743180480347,1.059216,1875.9,1875.4,5.33219]
[1743180480548,1.059216,1875.9,1875.7,5.33122]
[1743180480748,1.059216,1875.9,1875.6,5.33162]
[1743180481049,6.390046,1875.9,1875.6,5.33162]
[1743180481573,1.059216,1875.9,1875.7,5.33123]
[1743180481763,1.059216,1875.9,1875.7,10.66246]
[1743180481964,1.059216,1875.9,1875.6,5.33156]
[1743180482170,1.059216,1875.9,1875.6,10.66308]
[1743180482354,1.059216,1875.9,1875.7,5.33115]
[1743180483247,6.390066,1875.9,1875.6,7.2117729]
[1743180483449,1.059216,1875.9,1875.6,12.5432529]
[1743180483961,1.059216,1875.9,1875.7,5.33117]
[1743180484276,6.390106,1875.9,1875.6,6.09219]
[1743180484480,6.390106,1875.9,1875.6,5.33159]
[1743180484779,11.721066,1875.9,1875.6,5.33159]
[1743180485073,5.33107,1875.8,1875.4,6.16213]
[1743180485274,5.33107,1875.8,1875.5,5.33189]
[1743180487388,5.33148,1875.7,1875.4,5.33219]
[1743180487568,5.33195,1875.5,1875.2,5.33266]
[1743180487953,5.33195,1875.5,1875.1,6.09183]
[1743180488155,5.33228,1875.4,1875.1,5.33292]
[1743180488451,5.3319645,1875.5,1875.1,5.33287]
[1743180488651,5.3319645,1875.5,1875.1,10.66579]
[1743180489283,5.3319645,1875.5,1874.9,0.8966755]
[1743180489284,5.33333,1875.0,1874.9,0.1131755]
[1743180489469,33.5553345,1875.0,1874.9,0.1131755]
[1743180490273,40.40869106,1875.0,1874.9,0.1131755]
[1743180490479,41.35898783,1875.0,1874.9,5.5e-06]
[1743180491489,37.50563127,1875.0,1874.9,5.5e-06]
[1743180491791,41.35898783,1875.0,1874.9,5.5e-06]
[1743180492486,40.80898783,1875.0,1874.9,5.5e-06]
[1743180492692,36.5553345,1875.0,1874.9,5.5e-06]
[1743180492890,31.2220045,1875.0,1874.9,5.5e-06]
[1743180493265,36.5553345,1875.0,1874.9,5.5e-06]
[1743180494525,37.61915632,1875.0,1874.9,5.5e-06]
[1743180495211,29.28582632,1875.0,1874.9,5.5e-06]
[1743180495719,29.28582632,1875.0,1874.9,5.3336155]
[1743180497198,29.28582632,1875.0,1874.9,5.5e-06]
[1743180497399,29.28582632,1875.0,1874.9,5.3336155]
[1743180498620,29.28582632,1875.0,1874.9,6.40035205]
[1743180499216,29.28582632,1875.0,1874.9,7.22025205]
[1743180499638,28.222,1875.0,1874.9,7.27358538]
[1743180499943,5.2640045,1875.5,1875.3,5.33221]
[1743180500249,5.2640045,1875.5,1875.4,5.33219]
[1743180500403,4.5e-06,1875.5,1875.4,5.33219]
[1743180500810,4.5e-06,1875.5,1875.4,6.47819]
[1743180502394,28.233,1875.7,1875.6,5.33162]
[1743180502588,28.233,1875.7,1875.6,6.13152]
[1743180504189,4.5e-06,1876.2,1876.0,5.33029]
[1743180504595,4.5e-06,1876.2,1876.1,6.18520407]
[1743180504829,4.5e-06,1876.2,1876.1,7.28344941]
[1743180505309,4.5e-06,1876.2,1876.1,6.1319]
[1743180505808,4.5e-06,1876.2,1876.0,5.33029]
[1743180506521,5.3301045,1876.2,1875.8,5.33103]
[1743180506755,5.33038,1876.1,1875.5,0.8177]
[1743180506925,5.3303845,1876.1,1875.5,0.8177]
[1743180507257,4.5e-06,1876.1,1875.5,6.879189]
[1743180507413,4.5e-06,1876.1,1875.8,5.33094]
[1743180507812,5.3302345,1876.1,1875.7,5.33125]
[1743180508054,5.3302345,1876.1,1875.8,5.33103]
[1743180508339,5.3302345,1876.1,1875.7,5.33127]
[1743180508504,5.33051,1876.0,1875.7,5.33127]
[1743180508708,5.3302345,1876.1,1875.7,5.33124]
[1743180509117,5.33053,1876.0,1875.7,5.33124]
[1743180509313,5.33053,1876.0,1875.5,5.33185]
[1743180509505,5.2620045,1875.9,1875.5,5.33177]
[1743180509716,5.262,1875.8,1875.5,5.33177]
[1743180509908,10.59315,1875.8,1875.4,5.33194]
[1743180510413,28.223,1875.7,1875.4,5.33194]
[1743180510612,28.223,1875.7,1875.4,10.664]
[1743180510808,5.33173,1875.6,1875.2,5.33255]
[1743180511144,5.3317745,1875.6,1875.2,5.33255]
[1743180511442,5.33192,1875.5,1875.1,6.12353]
[1743180511655,10.66408,1875.5,1875.1,5.3329]
[1743180511854,5.33192,1875.5,1875.1,5.3329]
[1743180512036,5.33211,1875.5,1875.1,5.33303]
[1743180512213,10.59437,1875.4,1875.0,10.66641]
[1743180512412,5.2620045,1875.4,1875.1,5.33284]
[1743180512612,10.5942145,1875.4,1875.1,5.33284]
[1743180513424,15.9265945,1875.4,1875.0,5.33332]
[1743180513624,5.33314,1875.1,1874.9,2.0000055]
[1743180513917,5.262,1875.0,1874.9,2.0000055]
[1743180514150,5.2620045,1875.0,1874.9,2.0000055]
[1743180514460,10.5953345,1875.0,1874.9,2.0000055]
[1743180518256,5.2630045,1875.0,1874.9,7.3336155]
[1743180518458,5.2630045,1875.0,1874.9,2.0000055]
[1743180518657,4.5e-06,1875.0,1874.9,7.3336155]
[1743180519846,6.31155053,1875.2,1874.9,7.3335855]
[1743180520053,6.31155053,1875.2,1874.9,2.0000055]
[1743180520235,6.31155053,1875.2,1874.9,7.3336055]
[1743180520439,6.31155053,1875.2,1875.0,5.33331]
[1743180520642,6.31155053,1875.2,1875.0,5.33333]
[1743180520837,6.31155053,1875.2,1875.1,5.33304]
[1743180520838,1.04855053,1875.2,1875.1,5.33304]
[1743180521062,1.04855053,1875.2,1875.1,6.12164]
[1743180523468,1.04855053,1875.2,1875.1,5.33304]
[1743180524158,1.04855053,1875.2,1875.0,5.33333]
[1743180524359,1.04855053,1875.2,1875.0,5.33329]
[1743180524559,1.04855053,1875.2,1875.0,10.66643]
[1743180524760,1.04855053,1875.2,1875.1,5.33304]
[1743180525478,1.04855053,1875.2,1875.1,7.176658]
[1743180527240,1.04855053,1875.2,1875.1,6.11004]
[1743180527745,1.04855053,1875.2,1875.0,5.33314]
[1743180527938,1.04855053,1875.2,1875.0,10.66629]
[1743180528344,1.04855053,1875.2,1875.1,5.33304]
[1743180531796,1.04855053,1875.2,1875.0,10.66632]
[1743180532218,1.04855053,1875.2,1875.1,5.33304]
[1743180533084,1.04855053,1875.2,1875.0,5.33314]
[1743180533281,1.04855053,1875.2,1874.9,8.1587655]
[1743180533594,1.04855053,1875.2,1875.0,5.33331]
[1743180533901,1.04855053,1875.2,1875.0,10.66624]
[1743180534094,1.04855053,1875.2,1875.0,5.3331]
[1743180534405,1.04855053,1875.2,1874.9,7.3335855]
[1743180534590,1.04855053,1875.2,1874.9,12.6669855]
[1743180534774,1.04855053,1875.2,1874.9,7.3334055]
[1743180534976,6.38133053,1875.2,1874.9,2.0000055]
[1743180535310,16.97632053,1875.2,1874.9,2.0000055]
[1743180535479,11.64333053,1875.2,1874.9,2.0000055]
[1743180535677,5.33307,1875.1,1874.9,2.0000055]
[1743180535984,11.64333053,1875.2,1874.9,2.0000055]
[1743180536703,6.31055053,1875.2,1874.9,2.0000055]
[1743180536884,11.64342053,1875.2,1874.9,2.0000055]
[1743180537088,5.33309,1875.1,1874.9,2.0000055]
[1743180537295,10.66633,1875.1,1874.9,2.0000055]
[1743180537478,5.3333345,1875.0,1874.9,2.0000055]
[1743180538203,8.8833345,1875.0,1874.9,2.0000055]
[1743180540315,8.3333345,1875.0,1874.9,2.0000055]
[1743180540703,8.8833345,1875.0,1874.9,2.0000055]
[1743180541082,0.55,1874.8,1874.2,0.7516]
[1743180541428,5.33475,1874.5,1873.6,5.33727]
[1743180541711,5.33639,1874.0,1873.5,5.33735]
[1743180541898,38.83456,1873.9,1873.6,5.3373]
[1743180542102,38.83456,1873.9,1873.5,5.33735]
[1743180542439,5.33678,1873.8,1873.4,11.43486]
[1743180542710,5.33734,1873.6,1873.3,5.33793]
[1743180543014,5.33734,1873.6,1873.2,0.7575]
[1743180543224,5.3384,1873.3,1873.0,0.1131755]
[1743180543385,5.33874,1873.1,1873.0,0.1131755]
[1743180543712,10.6017445,1873.1,1873.0,0.1131755]
[1743180544311,11.6880834,1873.1,1873.0,0.1131755]
[1743180544511,14.6880834,1873.1,1873.0,0.1131755]
[1743180544714,15.2380834,1873.1,1873.0,5.5e-06]
[1743180544938,15.2380789,1873.1,1873.0,1e-06]
[1743180545304,5.34101,1872.4,1872.1,0.05]
[1743180545505,28.246,1872.3,1872.2,5.3413]
[1743180545710,27.94257617,1872.3,1872.2,6.76424063]
[1743180545937,5.265,1872.8,1872.3,5.34092]
[1743180546114,5.265,1872.8,1872.6,5.33994]
[1743180546319,10.60476,1872.8,1872.3,5.34085]
[1743180546635,5.265,1872.8,1872.4,5.34048]
[1743180546835,5.265,1872.8,1872.5,5.34028]
[1743180547043,1.04749522,1872.7,1872.5,5.34028]
[1743180547256,1.04749522,1872.7,1872.4,5.874738]
[1743180547452,1.04749522,1872.7,1872.4,5.34069]
[1743180547739,1.04749522,1872.7,1872.3,5.34079]
[1743180548049,1.04749522,1872.7,1872.4,5.3407]
[1743180548409,1.04749522,1872.7,1872.4,5.34052]
[1743180548610,1.04749522,1872.7,1872.6,5.34016]
[1743180549210,1.04749522,1872.7,1872.5,5.3403]
[1743180549442,1.04749522,1872.7,1872.4,5.34073]
[1743180549847,6.38737522,1872.7,1872.3,10.68186]
[1743180550043,1.04749522,1872.7,1872.3,5.34088]
[1743180550247,6.06,1872.6,1872.3,5.34088]
[1743180550419,6.06,1872.6,1872.3,5.34083]
[1743180550615,6.06,1872.6,1872.4,5.34046]
[1743180550821,6.06,1872.6,1872.5,5.34045]
[1743180551365,5.3413,1872.2,1872.1,0.05]
[1743180551520,16.6733,1872.2,1872.1,0.05]
[1743180552132,47.9313,1872.2,1872.1,0.05]
[1743180553352,47.9313,1872.2,1871.5,5.34328]
[1743180553353,3.0,1871.9,1871.3,0.8232]
[1743180553655,10.63061,1871.8,1871.4,5.34356]
[1743180553953,11.35284,1871.7,1871.3,6.16687]
[1743180554245,11.35284,1871.7,1871.3,6.16694]
[1743180554246,6.01,1871.7,1871.3,6.16694]
[1743180554469,5.34303,1871.6,1871.1,0.1131755]
[1743180554671,5.34308,1871.6,1871.1,5.4574455]
[1743180554846,10.6863,1871.6,1871.2,5.34401]
[1743180555042,5.34308,1871.6,1871.2,10.68799]
[1743180555247,1.05484124,1871.3,1871.2,5.34398]
[1743180555546,1.05484124,1871.3,1871.1,5.4575855]
[1743180556169,1.05484124,1871.3,1871.1,0.1131755]
[1743180556355,28.265,1871.2,1871.1,0.1131755]
[1743180556536,28.265,1871.2,1871.1,5.4576155]
[1743180556735,28.265,1871.2,1871.1,6.53782505]
[1743180556963,28.265,1871.2,1871.1,7.33162505]
[1743180557164,6.01,1871.3,1871.2,5.34416]
[1743180558679,1.08989371,1871.6,1871.1,6.2511755]
[1743180558861,1.08989371,1871.6,1871.3,5.34364]
[1743180559054,1.08989371,1871.6,1871.5,5.3433]
[1743180559446,1.08989371,1871.6,1871.3,5.34384]
[1743180559773,6.43295371,1871.6,1871.2,5.34407]
[1743180559972,1.08989371,1871.6,1871.3,5.34385]
[1743180560149,1.08989371,1871.6,1871.3,5.34371]
[1743180560363,1.08989371,1871.6,1871.3,5.34372]
[1743180560669,1.08989371,1871.6,1871.4,5.34357]
[1743180560846,5.293,1871.8,1871.4,0.534357]
[1743180561049,34.282,1871.9,1871.8,5.34245]
[1743180561442,35.35356446,1871.9,1871.8,5.34245]
[1743180561965,34.282,1871.9,1871.8,5.34245]
[1743180562167,34.282,1871.9,1871.7,5.34249]
[1743180562367,34.282,1871.9,1871.7,10.68506]
[1743180562876,34.282,1871.9,1871.6,0.7786]
[1743180562877,34.282,1871.9,1871.6,6.12153]
[1743180563178,8.34249,1871.8,1871.4,5.34355]
[1743180563479,8.34249,1871.8,1871.5,5.3433]
[1743180563480,6.01,1871.7,1871.5,5.3433]
[1743180563977,6.01,1871.7,1871.6,5.34302]
[1743180564145,6.01,1871.7,1871.5,10.68633]
[1743180564346,6.01,1871.7,1871.5,5.34312]
[1743180564665,6.01,1871.7,1871.4,5.34354]
[1743180565048,6.01,1871.7,1871.5,5.34317]
[1743180565977,7.08974578,1871.7,1871.6,5.34302]
[1743180566379,28.272,1871.9,1871.7,10.68519]
[1743180566675,28.272,1871.9,1871.7,5.34257]
[1743180566980,28.272,1871.9,1871.6,5.34285]
[1743180567282,28.272,1871.9,1871.7,5.34269]
[1743180567958,28.272,1871.9,1871.6,5.34279]
[1743180568158,33.61416,1871.9,1871.5,5.34328]
[1743180568463,5.34253,1871.8,1871.5,5.34328]
[1743180568664,3.0,1871.8,1871.3,5.34385]
[1743180568983,11.35298,1871.7,1871.3,5.34382]
[1743180569147,5.298,1871.6,1871.3,5.34382]
[1743180569348,10.64104,1871.6,1871.3,5.34382]
[1743180569680,8.34332,1871.5,1871.2,5.34412]
[1743180569996,5.3436,1871.4,1871.1,0.1131755]
[1743180570850,1.07567329,1871.2,1871.1,5.4576155]
[1743180572651,5.293,1871.5,1871.4,5.34359]
[1743180572953,6.01,1871.6,1871.5,5.3433]
[1743180573384,7.09668041,1871.6,1871.4,5.34348]
[1743180573679,7.09668041,1871.6,1871.5,5.3433]
[1743180574057,7.09668041,1871.6,1871.2,6.16035]
[1743180574058,12.43986041,1871.6,1871.3,5.34385]
[1743180574376,7.09668041,1871.6,1871.3,5.34376]
[1743180574576,17.78293041,1871.6,1871.2,6.16036]
[1743180574783,12.43972041,1871.6,1871.2,5.34416]
[1743180575282,17.78292041,1871.6,1871.2,5.34401]
[1743180575783,28.285,1871.5,1871.2,5.34401]
[1743180575987,28.285,1871.5,1871.2,10.68806]
[1743180576286,28.285,1871.5,1871.2,5.34401]
[1743180576588,33.62831,1871.5,1871.2,5.34401]
[1743180577282,39.63831,1871.5,1871.2,5.34401]
[1743180577654,34.295,1871.5,1871.2,10.68801]
[1743180577857,1.09396854,1871.3,1871.2,10.68801]
[1743180579589,1.09396854,1871.3,1871.1,5.4575455]
[1743180579885,1.09396854,1871.3,1871.2,5.34416]
[1743180580694,1.09396854,1871.3,1871.1,5.4574955]
[1743180581193,1.09396854,1871.3,1871.1,5.4575855]
[1743180581487,39.582,1871.5,1871.3,5.34368]
[1743180581697,35.35116254,1871.5,1871.4,5.34359]
[1743180582586,29.34116254,1871.5,1871.4,6.17419]
[1743180583590,28.285,1871.5,1871.4,6.17419]
[1743180584160,5.34132,1872.2,1871.3,5.74030359]
[1743180584161,39.586,1872.2,1872.0,5.34165]
[1743180584902,39.586,1872.2,1872.0,5.34186]
[1743180585097,1.08102603,1872.1,1872.0,5.34186]
[1743180585477,1.08102603,1872.1,1871.8,5.34234]
[1743180585898,1.08102603,1872.1,1871.8,5.3423]
[1743180586092,1.08102603,1872.1,1871.9,5.342]
[1743180586295,1.08102603,1872.1,1872.0,5.34188]
[1743180586607,1.08102603,1872.1,1871.8,5.3424]
[1743180586795,1.08102603,1872.1,1871.8,10.68458]
[1743180587105,1.08102603,1872.1,1871.8,11.29934]
[1743180587305,1.08102603,1872.1,1871.8,11.2994]
[1743180587520,1.08102603,1872.1,1871.8,11.29941]
[1743180587699,1.08102603,1872.1,1871.8,10.68458]
[1743180587877,1.08102603,1872.1,1871.8,5.34228]
[1743180588078,1.08102603,1872.1,1871.9,5.34206]
[1743180588274,1.08102603,1872.1,1871.7,6.14792]
[1743180588483,1.08102603,1872.1,1871.8,5.34223]
[1743180588688,1.08102603,1872.1,1871.8,10.68452]
[1743180589205,1.08102603,1872.1,1871.9,5.34213]
[1743180589791,1.08102603,1872.1,1871.9,5.34204]
[1743180589994,1.08102603,1872.1,1871.8,10.68477]
[1743180590297,1.08102603,1872.1,1871.8,5.34235]
[1743180590509,5.34198,1872.0,1871.7,0.8053]
[1743180590676,6.42284603,1872.1,1871.5,0.798]
[1743180591012,6.01,1872.0,1871.7,5.34254]
[1743180591222,6.01,1872.0,1871.8,10.6847]
[1743180591413,6.01,1872.0,1871.8,5.34234]
[1743180591711,6.01,1872.0,1871.7,5.34263]
[1743180592090,6.01,1872.0,1871.7,10.68527]
[1743180592509,6.01,1872.0,1871.7,5.34272]
[1743180592710,6.01,1872.0,1871.7,5.34257]
[1743180592898,6.01,1872.0,1871.8,5.34244]
[1743180593098,6.01,1872.0,1871.6,5.34299]
[1743180593409,5.34293,1871.7,1871.3,0.7745]
[1743180593597,10.68587,1871.7,1871.3,6.1183]
[1743180593807,5.34312,1871.6,1871.1,6.88148405]
[1743180593981,6.01,1871.5,1871.2,5.34403]
[1743180595219,6.01,1871.5,1871.3,5.34386]
[1743180595414,6.01,1871.5,1871.2,5.34403]
[1743180595914,6.01,1871.5,1871.3,5.34387]
[1743180595915,1.04642815,1871.4,1871.3,5.34387]
[1743180596888,1.04642815,1871.4,1871.1,0.9128755]
[1743180597095,6.39015815,1871.4,1871.1,0.1131755]
[1743180597298,11.67015815,1871.4,1871.1,0.1131755]
[1743180597714,6.01,1871.3,1871.1,5.4575555]
[1743180597915,6.01,1871.3,1871.2,5.34416]
[1743180599187,6.01,1871.3,1871.1,5.4575555]
[1743180599388,11.35389,1871.3,1871.1,0.1131755]
[1743180600038,16.69796,1871.3,1871.1,0.1131755]
[1743180600206,11.35389,1871.3,1871.1,0.1131755]
[1743180600540,5.34416,1871.2,1871.1,0.1131755]
[1743180600744,42.63916,1871.2,1871.1,0.1131755]
[1743180602134,39.583,1871.2,1871.1,0.1131755]
[1743180602305,34.295,1871.2,1871.1,0.1131755]
[1743180603486,34.295,1871.2,1871.1,5.4576155]
[1743180603686,34.295,1871.2,1871.1,7.31813805]
[1743180603933,28.285,1871.2,1871.1,7.31813805]
[1743180604288,6.01,1871.5,1871.4,5.34359]
[1743180604493,6.01,1871.5,1871.4,6.12389]
[1743180604896,1.04524724,1871.6,1871.5,5.3433]
[1743180605191,6.01,1871.8,1871.6,5.3429]
[1743180605391,6.01,1871.8,1871.6,5.34283]
[1743180605592,1.09530163,1871.7,1871.6,5.34283]
[1743180605813,6.01,1871.8,1871.7,5.34273]
[1743180605999,6.01,1871.8,1871.7,6.15473]
[1743180606199,6.01,1871.8,1871.5,0.7957]
[1743180606418,11.35258,1871.8,1871.4,5.34343]
[1743180606596,6.01,1871.8,1871.4,5.34343]
[1743180606801,11.35249,1871.8,1871.4,5.34343]
[1743180607313,6.01,1871.8,1871.5,5.3433]
[1743180607507,6.01,1871.8,1871.6,5.34286]
[1743180607818,6.01,1871.8,1871.7,5.34273]
[1743180608891,6.01,1871.8,1871.7,6.17243]
[1743180609412,29.36675574,1871.9,1871.7,11.51516]
[1743180609614,29.36675574,1871.9,1871.8,5.34245]
[1743180610205,29.36675574,1871.9,1871.7,11.515]
[1743180610522,29.36675574,1871.9,1871.8,5.34245]
[1743180610721,28.289,1871.9,1871.8,5.34245]
[1743180611327,6.01,1872.1,1872.0,5.34188]
[1743180611825,11.35174,1872.1,1871.7,6.17215]
[1743180612130,7.10758318,1872.1,1871.8,5.34241]
[1743180612603,7.10758318,1872.1,1871.9,5.34211]
[1743180613306,7.10758318,1872.1,1872.0,5.34188]
[1743180613623,6.01,1872.1,1872.0,6.410272]
[1743180613824,1.08022077,1872.2,1872.1,5.34159]
[1743180614023,6.01,1872.4,1872.3,5.34102]
[1743180614536,1.05406998,1872.5,1872.4,6.09333]
[1743180615025,28.286,1872.6,1872.5,5.34045]
[1743180615228,28.286,1872.6,1872.5,6.483828]
[1743180615528,29.35024121,1872.6,1872.5,6.483828]
[1743180615826,28.286,1872.6,1872.5,6.483828]
[1743180616033,28.286,1872.6,1872.5,5.34045]
[1743180616325,28.286,1872.6,1872.4,5.34073]
[1743180616498,33.62619,1872.6,1872.3,5.341]
[1743180616698,38.94119,1872.6,1872.3,5.341]
[1743180616894,33.601,1872.6,1872.3,5.34092]
[1743180617098,33.601,1872.6,1872.4,5.34062]
[1743180617506,33.601,1872.6,1872.4,5.3406]
[1743180618095,33.601,1872.6,1872.4,5.34059]
[1743180618433,39.611,1872.6,1872.4,5.34059]
[1743180619125,39.611,1872.6,1872.4,5.34058]
[1743180619341,39.611,1872.6,1872.5,5.34045]
[1743180619516,39.611,1872.6,1872.4,5.34058]
[1743180619825,39.611,1872.6,1872.5,5.34045]
[1743180620496,34.296,1872.6,1872.5,5.34045]
[1743180621207,34.296,1872.6,1872.4,5.34058]
[1743180621397,5.3409,1872.4,1872.0,6.410112]
[1743180621602,11.3509,1872.4,1872.0,5.34168]
[1743180621809,16.69181,1872.4,1872.0,5.34168]
[1743180622023,5.3411,1872.3,1871.9,5.34211]
[1743180622224,5.34174,1872.1,1871.7,6.13749]
[1743180622599,11.35141,1872.2,1871.8,5.34243]
[1743180623215,16.69287,1872.2,1871.8,5.34243]
[1743180623433,16.69293,1872.2,1871.8,5.34243]
[1743180623734,11.35141,1872.2,1871.8,5.34243]
[1743180624101,11.35141,1872.2,1871.9,5.34205]
[1743180624305,1.07801235,1872.0,1871.9,10.68411]
[1743180624557,1.07801235,1872.0,1871.9,5.34205]